[Event "Titled Tuesday Blitz August 15 Early 2023"]
[White "rikchessmx"]
[Black "Politov, Pavel Y."]
[BlackFideId "24110515"]
[WhiteElo "2341"]
[BlackElo "2086"]
[Result "1-0"]
[Round "3"]
[TimeControl "180+1"]
[Date "2023.08.15"]
[WhiteClock "0:01:40"]
[BlackClock "0:00:00"]
[Board "230"]

1. e3 {[%clk 0:02:46]}  d5 {[%clk 0:02:57]} 2. c4 {[%clk 0:02:44]}  dxc4 {[%clk 0:02:46]} 3. Bxc4 {[%clk 0:02:45]}  Nf6 {[%clk 0:02:46]} 4. Nf3 {[%clk 0:02:44]}  e6 {[%clk 0:02:45]} 5. O-O {[%clk 0:02:43]}  c5 {[%clk 0:02:44]} 6. d4 {[%clk 0:02:43]}  a6 {[%clk 0:02:44]} 7. a3 {[%clk 0:02:42]}  b5 {[%clk 0:02:37]} 8. Ba2 {[%clk 0:02:42]}  Bb7 {[%clk 0:02:37]} 9. Nc3 {[%clk 0:02:41]}  Nbd7 {[%clk 0:02:29]} 10. Qe2 {[%clk 0:02:40]}  Be7 {[%clk 0:02:28]} 11. e4 {[%clk 0:02:40]}  cxd4 {[%clk 0:02:25]} 12. Nxd4 {[%clk 0:02:39]}  Nc5 {[%clk 0:01:59]} 13. Rd1 {[%clk 0:02:34]}  Qb6 {[%clk 0:01:08]} 14. e5 {[%clk 0:02:31]}  Nfd7 {[%clk 0:00:53]} 15. b4 {[%clk 0:02:30]}  Na4 {[%clk 0:00:47]} 16. Nxa4 {[%clk 0:02:30]}  bxa4 {[%clk 0:00:48]} 17. Be3 {[%clk 0:02:20]}  Qc7 {[%clk 0:00:29]} 18. f4 {[%clk 0:02:20]}  O-O {[%clk 0:00:25]} 19. Bxe6 {[%clk 0:02:19]}  fxe6 {[%clk 0:00:19]} 20. Nxe6 {[%clk 0:02:18]}  Qc6 {[%clk 0:00:16]} 21. Nxf8 {[%clk 0:02:18]}  Rxf8 {[%clk 0:00:14]} 22. Rac1 {[%clk 0:02:18]}  Qe6 {[%clk 0:00:09]} 23. Rc7 {[%clk 0:02:14]}  Bd5 {[%clk 0:00:08]} 24. Qd2 {[%clk 0:02:01]}  Nb6 {[%clk 0:00:08]} 25. Rxe7 {[%clk 0:01:55]}  Qxe7 {[%clk 0:00:06]} 26. Bxb6 {[%clk 0:01:55]}  Bb3 {[%clk 0:00:05]} 27. Bc5 {[%clk 0:01:53]}  Qe6 {[%clk 0:00:03]} 28. Bxf8 {[%clk 0:01:53]}  Bxd1 {[%clk 0:00:03]} 29. Qxd1 {[%clk 0:01:52]}  Kxf8 {[%clk 0:00:04]} 30. Qd8+ {[%clk 0:01:51]}  Kf7 {[%clk 0:00:04]} 31. Qd3 {[%clk 0:01:45]}  Qa2 {[%clk 0:00:03]} 32. h3 {[%clk 0:01:41]}  Qa1+ {[%clk 0:00:02]} 33. Kh2 {[%clk 0:01:41]}  Qc1 {[%clk 0:00:01]} 34. Qf5+ {[%clk 0:01:39]}  Ke8 {[%clk 0:00:00]} 35. e6 {[%clk 0:01:40]} 1-0


[Site "https://www.chess.com"]

[Event "Titled Tuesday Blitz August 15 Early 2023"]
[White "Li, Hui"]
[Black "Winkels, Marcel"]
[WhiteFideId "15400310"]
[BlackFideId "1003887"]
[WhiteElo "2340"]
[BlackElo "2073"]
[Result "1-0"]
[Round "3"]
[TimeControl "180+1"]
[Date "2023.08.15"]
[WhiteClock "0:00:12"]
[BlackClock "0:00:10"]
[Board "231"]

1. e4 {[%clk 0:03:00]}  c5 {[%clk 0:02:59]} 2. Nf3 {[%clk 0:03:00]}  e6 {[%clk 0:02:59]} 3. d4 {[%clk 0:03:01]}  cxd4 {[%clk 0:03:00]} 4. Nxd4 {[%clk 0:03:02]}  Nc6 {[%clk 0:02:59]} 5. Nc3 {[%clk 0:03:01]}  Qc7 {[%clk 0:02:59]} 6. Be2 {[%clk 0:03:01]}  a6 {[%clk 0:02:59]} 7. O-O {[%clk 0:03:02]}  Nf6 {[%clk 0:02:59]} 8. Be3 {[%clk 0:03:02]}  Be7 {[%clk 0:02:58]} 9. f4 {[%clk 0:03:01]}  d6 {[%clk 0:02:58]} 10. a4 {[%clk 0:03:01]}  O-O {[%clk 0:02:57]} 11. Kh1 {[%clk 0:03:01]}  Nxd4 {[%clk 0:02:33]} 12. Qxd4 {[%clk 0:03:00]}  Bd7 {[%clk 0:02:29]} 13. Bf3 {[%clk 0:02:31]}  Bc6 {[%clk 0:02:18]} 14. h3 {[%clk 0:01:18]}  Rac8 {[%clk 0:01:47]} 15. Rad1 {[%clk 0:01:08]}  Rfe8 {[%clk 0:01:40]} 16. Qb6 {[%clk 0:01:01]}  Nd7 {[%clk 0:01:26]} 17. Qxc7 {[%clk 0:01:01]}  Rxc7 {[%clk 0:01:25]} 18. Kh2 {[%clk 0:00:52]}  Rec8 {[%clk 0:01:09]} 19. Rd2 {[%clk 0:00:48]}  Nf8 {[%clk 0:01:07]} 20. Bb6 {[%clk 0:00:42]}  Rd7 {[%clk 0:01:05]} 21. Rfd1 {[%clk 0:00:40]}  Ng6 {[%clk 0:00:56]} 22. g3 {[%clk 0:00:36]}  Nf8 {[%clk 0:00:42]} 23. Kg2 {[%clk 0:00:32]}  g6 {[%clk 0:00:41]} 24. a5 {[%clk 0:00:18]}  Kg7 {[%clk 0:00:34]} 25. g4 {[%clk 0:00:17]}  h6 {[%clk 0:00:32]} 26. Kg3 {[%clk 0:00:16]}  Nh7 {[%clk 0:00:27]} 27. Ne2 {[%clk 0:00:14]}  Nf6 {[%clk 0:00:25]} 28. Nc3 {[%clk 0:00:12]}  e5 {[%clk 0:00:20]} 29. f5 {[%clk 0:00:09]}  g5 {[%clk 0:00:19]} 30. Be3 {[%clk 0:00:07]}  Ne8 {[%clk 0:00:17]} 31. Bb6 {[%clk 0:00:06]}  Nf6 {[%clk 0:00:16]} 32. h4 {[%clk 0:00:05]}  gxh4+ {[%clk 0:00:15]} 33. Kh3 {[%clk 0:00:05]}  Nh7 {[%clk 0:00:14]} 34. Rg1 {[%clk 0:00:03]}  Ng5+ {[%clk 0:00:14]} 35. Kg2 {[%clk 0:00:03]}  h3+ {[%clk 0:00:14]} 36. Kg3 {[%clk 0:00:03]}  h2 {[%clk 0:00:12]} 37. Rxh2 {[%clk 0:00:02]}  Nxf3 {[%clk 0:00:11]} 38. Kxf3 {[%clk 0:00:03]}  Bg5 {[%clk 0:00:10]} 39. Re2 {[%clk 0:00:02]}  Bb5 {[%clk 0:00:10]} 40. Nxb5 {[%clk 0:00:02]}  axb5 {[%clk 0:00:09]} 41. Rd1 {[%clk 0:00:01]}  Rc6 {[%clk 0:00:08]} 42. c3 {[%clk 0:00:01]}  b4 {[%clk 0:00:08]} 43. cxb4 {[%clk 0:00:01]}  Rc4 {[%clk 0:00:08]} 44. b5 {[%clk 0:00:01]}  Rb4 {[%clk 0:00:07]} 45. Be3 {[%clk 0:00:02]}  Rxb5 {[%clk 0:00:07]} 46. Bxg5 {[%clk 0:00:01]}  hxg5 {[%clk 0:00:08]} 47. Red2 {[%clk 0:00:02]}  Rxa5 {[%clk 0:00:07]} 48. Rxd6 {[%clk 0:00:02]}  Rxd6 {[%clk 0:00:08]} 49. Rxd6 {[%clk 0:00:03]}  Rb5 {[%clk 0:00:08]} 50. Rd2 {[%clk 0:00:03]}  Rb3+ {[%clk 0:00:08]} 51. Kg2 {[%clk 0:00:04]}  b5 {[%clk 0:00:08]} 52. Rc2 {[%clk 0:00:03]}  Kf6 {[%clk 0:00:09]} 53. Kf2 {[%clk 0:00:04]}  b4 {[%clk 0:00:08]} 54. Rc6+ {[%clk 0:00:04]}  Kg7 {[%clk 0:00:08]} 55. Rc2 {[%clk 0:00:04]}  Rd3 {[%clk 0:00:06]} 56. Kg2 {[%clk 0:00:04]}  b3 {[%clk 0:00:06]} 57. Re2 {[%clk 0:00:04]}  Kf8 {[%clk 0:00:06]} 58. Kf2 {[%clk 0:00:04]}  Ke7 {[%clk 0:00:05]} 59. Re3 {[%clk 0:00:05]}  Rd2+ {[%clk 0:00:05]} 60. Re2 {[%clk 0:00:05]}  Rc2 {[%clk 0:00:03]} 61. Ke1 {[%clk 0:00:05]}  Kd6 {[%clk 0:00:04]} 62. Rxc2 {[%clk 0:00:05]}  bxc2 {[%clk 0:00:03]} 63. Kd2 {[%clk 0:00:06]}  Kc5 {[%clk 0:00:03]} 64. Kxc2 {[%clk 0:00:06]}  Kd4 {[%clk 0:00:04]} 65. b4 {[%clk 0:00:06]}  Kxe4 {[%clk 0:00:04]} 66. Kc3 {[%clk 0:00:06]}  Kd5 {[%clk 0:00:05]} 67. Kd3 {[%clk 0:00:06]}  e4+ {[%clk 0:00:04]} 68. Ke3 {[%clk 0:00:06]}  Ke5 {[%clk 0:00:04]} 69. b5 {[%clk 0:00:06]}  Kd5 {[%clk 0:00:04]} 70. b6 {[%clk 0:00:06]}  Kc6 {[%clk 0:00:04]} 71. Kxe4 {[%clk 0:00:06]}  Kxb6 {[%clk 0:00:04]} 72. Ke5 {[%clk 0:00:07]}  Kc6 {[%clk 0:00:04]} 73. Kf6 {[%clk 0:00:08]}  Kd5 {[%clk 0:00:05]} 74. Kxf7 {[%clk 0:00:07]}  Ke4 {[%clk 0:00:06]} 75. Kg6 {[%clk 0:00:08]}  Kf4 {[%clk 0:00:06]} 76. f6 {[%clk 0:00:08]}  Kxg4 {[%clk 0:00:07]} 77. f7 {[%clk 0:00:09]}  Kh4 {[%clk 0:00:08]} 78. f8=Q {[%clk 0:00:09]}  g4 {[%clk 0:00:09]} 79. Qf4 {[%clk 0:00:09]}  Kh3 {[%clk 0:00:09]} 80. Kg5 {[%clk 0:00:10]}  g3 {[%clk 0:00:10]} 81. Qh4+ {[%clk 0:00:10]}  Kg2 {[%clk 0:00:10]} 82. Kf4 {[%clk 0:00:10]}  Kf2 {[%clk 0:00:10]} 83. Qxg3+ {[%clk 0:00:11]}  Kf1 {[%clk 0:00:11]} 84. Qh2 {[%clk 0:00:11]}  Ke1 {[%clk 0:00:10]} 85. Ke3 {[%clk 0:00:11]}  Kd1 {[%clk 0:00:10]} 86. Qd2# {[%clk 0:00:12]} 1-0


[Site "https://www.chess.com"]

[Event "Titled Tuesday Blitz August 15 Early 2023"]
[White "Lakshmi C"]
[Black "Bogaudinov, Rushan"]
[WhiteFideId "25035347"]
[BlackFideId "4129288"]
[WhiteElo "2068"]
[BlackElo "2339"]
[Result "1-0"]
[Round "3"]
[TimeControl "180+1"]
[Date "2023.08.15"]
[WhiteClock "0:00:04"]
[BlackClock "0:00:00"]
[Board "232"]

1. e4 {[%clk 0:02:32]}  a6 {[%clk 0:02:59]} 2. g3 {[%clk 0:02:31]}  b5 {[%clk 0:02:58]} 3. Bg2 {[%clk 0:02:31]}  Bb7 {[%clk 0:02:58]} 4. Ne2 {[%clk 0:02:32]}  h5 {[%clk 0:02:58]} 5. d4 {[%clk 0:02:31]}  h4 {[%clk 0:02:58]} 6. f4 {[%clk 0:02:27]}  h3 {[%clk 0:02:58]} 7. Bf3 {[%clk 0:02:27]}  d6 {[%clk 0:02:56]} 8. d5 {[%clk 0:02:27]}  c6 {[%clk 0:02:50]} 9. Be3 {[%clk 0:02:25]}  Nf6 {[%clk 0:02:44]} 10. Nbc3 {[%clk 0:02:19]}  b4 {[%clk 0:02:38]} 11. Na4 {[%clk 0:02:15]}  c5 {[%clk 0:02:33]} 12. b3 {[%clk 0:02:09]}  g6 {[%clk 0:02:32]} 13. c4 {[%clk 0:02:03]}  bxc3 {[%clk 0:02:24]} 14. Naxc3 {[%clk 0:02:01]}  Bg7 {[%clk 0:02:23]} 15. O-O {[%clk 0:01:52]}  O-O {[%clk 0:02:21]} 16. a3 {[%clk 0:01:41]}  Nbd7 {[%clk 0:02:17]} 17. b4 {[%clk 0:01:31]}  Qc7 {[%clk 0:02:04]} 18. Rc1 {[%clk 0:01:27]}  Rfc8 {[%clk 0:01:59]} 19. Na4 {[%clk 0:01:25]}  e6 {[%clk 0:01:36]} 20. bxc5 {[%clk 0:01:17]}  exd5 {[%clk 0:01:30]} 21. exd5 {[%clk 0:01:10]}  dxc5 {[%clk 0:01:25]} 22. d6 {[%clk 0:00:43]}  Qb8 {[%clk 0:01:22]} 23. Rb1 {[%clk 0:00:38]}  Ra7 {[%clk 0:01:17]} 24. Nb6 {[%clk 0:00:19]}  Re8 {[%clk 0:01:10]} 25. Qd2 {[%clk 0:00:02]}  Qd8 {[%clk 0:00:52]} 26. Nxd7 {[%clk 0:00:02]}  Nxd7 {[%clk 0:00:53]} 27. Bxb7 {[%clk 0:00:02]}  Re6 {[%clk 0:00:21]} 28. Bf3 {[%clk 0:00:01]}  Qe8 {[%clk 0:00:13]} 29. Bf2 {[%clk 0:00:01]}  Bf8 {[%clk 0:00:08]} 30. Nc3 {[%clk 0:00:01]}  Rxd6 {[%clk 0:00:08]} 31. Qc2 {[%clk 0:00:02]}  Bg7 {[%clk 0:00:07]} 32. Rfe1 {[%clk 0:00:03]}  Qd8 {[%clk 0:00:06]} 33. Ne4 {[%clk 0:00:03]}  Rc6 {[%clk 0:00:00]} 34. Ng5 {[%clk 0:00:04]} 1-0


[Site "https://www.chess.com"]

[Event "Titled Tuesday Blitz August 15 Early 2023"]
[White "Nithyalakshmi, Sivanesan"]
[Black "Maluco_do_Natal_00"]
[WhiteFideId "5706955"]
[WhiteElo "2338"]
[BlackElo "2066"]
[Result "1-0"]
[Round "3"]
[TimeControl "180+1"]
[Date "2023.08.15"]
[WhiteClock "0:00:10"]
[BlackClock "0:00:00"]
[Board "233"]

1. e4 {[%clk 0:03:00]}  c5 {[%clk 0:02:42]} 2. Nc3 {[%clk 0:02:59]}  g6 {[%clk 0:02:39]} 3. d4 {[%clk 0:02:51]}  cxd4 {[%clk 0:02:30]} 4. Qxd4 {[%clk 0:02:50]}  Nf6 {[%clk 0:02:29]} 5. e5 {[%clk 0:02:50]}  Nc6 {[%clk 0:02:28]} 6. Qf4 {[%clk 0:02:21]}  Nh5 {[%clk 0:02:18]} 7. Qe3 {[%clk 0:02:20]}  Qa5 {[%clk 0:02:14]} 8. Nf3 {[%clk 0:02:16]}  Ng7 {[%clk 0:01:58]} 9. Bd3 {[%clk 0:01:55]}  Nb4 {[%clk 0:01:51]} 10. O-O {[%clk 0:01:51]}  Nxd3 {[%clk 0:01:51]} 11. Qxd3 {[%clk 0:01:46]}  Ne6 {[%clk 0:01:28]} 12. Nd5 {[%clk 0:01:27]}  b6 {[%clk 0:01:11]} 13. Bd2 {[%clk 0:01:21]}  Qc5 {[%clk 0:00:42]} 14. b4 {[%clk 0:01:00]}  Qc6 {[%clk 0:00:37]} 15. b5 {[%clk 0:00:56]}  Qb7 {[%clk 0:00:17]} 16. c4 {[%clk 0:00:28]}  Bg7 {[%clk 0:00:16]} 17. Bb4 {[%clk 0:00:26]}  Nc5 {[%clk 0:00:12]} 18. Qe3 {[%clk 0:00:23]}  O-O {[%clk 0:00:09]} 19. Nxe7+ {[%clk 0:00:22]}  Kh8 {[%clk 0:00:08]} 20. Nd5 {[%clk 0:00:20]}  Re8 {[%clk 0:00:07]} 21. Bxc5 {[%clk 0:00:20]}  bxc5 {[%clk 0:00:06]} 22. Qxc5 {[%clk 0:00:20]}  a6 {[%clk 0:00:06]} 23. Nc7 {[%clk 0:00:19]}  Rb8 {[%clk 0:00:02]} 24. Nxe8 {[%clk 0:00:16]}  axb5 {[%clk 0:00:02]} 25. Nxg7 {[%clk 0:00:14]}  Kxg7 {[%clk 0:00:02]} 26. Qd6 {[%clk 0:00:14]}  bxc4 {[%clk 0:00:02]} 27. Qf6+ {[%clk 0:00:13]}  Kg8 {[%clk 0:00:02]} 28. Ng5 {[%clk 0:00:12]}  d6 {[%clk 0:00:02]} 29. Qd8+ {[%clk 0:00:12]}  Kg7 {[%clk 0:00:02]} 30. exd6 {[%clk 0:00:10]}  Bf5 {[%clk 0:00:00]} 31. Qc7 {[%clk 0:00:10]} 1-0


[Site "https://www.chess.com"]

[Event "Titled Tuesday Blitz August 15 Early 2023"]
[White "Gatterer, Florian"]
[Black "Zepeda Berlanga, Jan Enrique"]
[WhiteFideId "811688"]
[BlackFideId "5132355"]
[WhiteElo "2334"]
[BlackElo "1962"]
[Result "1-0"]
[Round "3"]
[TimeControl "180+1"]
[Date "2023.08.15"]
[WhiteClock "0:01:50"]
[BlackClock "0:00:46"]
[Board "236"]

1. f4 {[%clk 0:03:00]}  c5 {[%clk 0:02:59]} 2. Nf3 {[%clk 0:03:00]}  Nc6 {[%clk 0:02:57]} 3. e4 {[%clk 0:02:59]}  d6 {[%clk 0:02:54]} 4. g3 {[%clk 0:03:00]}  Nf6 {[%clk 0:02:53]} 5. d3 {[%clk 0:02:59]}  g6 {[%clk 0:02:48]} 6. Bg2 {[%clk 0:02:59]}  Bg7 {[%clk 0:02:49]} 7. O-O {[%clk 0:02:58]}  O-O {[%clk 0:02:48]} 8. h3 {[%clk 0:02:59]}  h5 {[%clk 0:02:23]} 9. c3 {[%clk 0:02:57]}  b5 {[%clk 0:02:19]} 10. Qe2 {[%clk 0:02:55]}  Bb7 {[%clk 0:02:18]} 11. Be3 {[%clk 0:02:50]}  Qc7 {[%clk 0:02:14]} 12. Nh4 {[%clk 0:02:44]}  e5 {[%clk 0:02:05]} 13. f5 {[%clk 0:02:43]}  Ne7 {[%clk 0:02:03]} 14. Nd2 {[%clk 0:02:35]}  d5 {[%clk 0:02:00]} 15. g4 {[%clk 0:02:30]}  c4 {[%clk 0:01:53]} 16. dxc4 {[%clk 0:02:14]}  Nxe4 {[%clk 0:01:37]} 17. Nxe4 {[%clk 0:02:10]}  dxe4 {[%clk 0:01:37]} 18. f6 {[%clk 0:02:11]}  Nf5 {[%clk 0:01:10]} 19. fxg7 {[%clk 0:01:53]}  Kxg7 {[%clk 0:00:49]} 20. gxf5 {[%clk 0:01:51]}  Qe7 {[%clk 0:00:46]} 21. f6+ {[%clk 0:01:50]} 1-0


[Site "https://www.chess.com"]

[Event "Titled Tuesday Blitz August 15 Early 2023"]
[White "Gyulamiryan-koryun"]
[Black "Pershina, Elena"]
[BlackFideId "24147516"]
[WhiteElo "2030"]
[BlackElo "2332"]
[Result "0-1"]
[Round "3"]
[TimeControl "180+1"]
[Date "2023.08.15"]
[WhiteClock "0:00:00"]
[BlackClock "0:00:10"]
[Board "237"]

1. d4 {[%clk 0:03:00]}  d5 {[%clk 0:02:59]} 2. c4 {[%clk 0:02:57]}  c6 {[%clk 0:02:59]} 3. Nc3 {[%clk 0:02:54]}  Nf6 {[%clk 0:02:59]} 4. Nf3 {[%clk 0:02:54]}  dxc4 {[%clk 0:02:58]} 5. a4 {[%clk 0:02:53]}  Bf5 {[%clk 0:02:57]} 6. Bf4 {[%clk 0:02:51]}  Nbd7 {[%clk 0:02:55]} 7. e3 {[%clk 0:02:51]}  e6 {[%clk 0:02:46]} 8. Bxc4 {[%clk 0:02:50]}  Bb4 {[%clk 0:02:46]} 9. O-O {[%clk 0:02:50]}  O-O {[%clk 0:02:46]} 10. Nh4 {[%clk 0:02:46]}  Bg4 {[%clk 0:02:38]} 11. f3 {[%clk 0:02:45]}  Bh5 {[%clk 0:02:38]} 12. g4 {[%clk 0:02:41]}  Nd5 {[%clk 0:02:17]} 13. Ng2 {[%clk 0:02:15]}  Bg6 {[%clk 0:02:11]} 14. Nxd5 {[%clk 0:02:03]}  exd5 {[%clk 0:02:08]} 15. Bd3 {[%clk 0:01:53]}  Bxd3 {[%clk 0:02:05]} 16. Qxd3 {[%clk 0:01:54]}  Re8 {[%clk 0:02:04]} 17. h4 {[%clk 0:01:52]}  a5 {[%clk 0:01:49]} 18. h5 {[%clk 0:01:45]}  h6 {[%clk 0:01:42]} 19. Bg3 {[%clk 0:01:36]}  Qe7 {[%clk 0:01:38]} 20. Kf2 {[%clk 0:01:29]}  c5 {[%clk 0:01:36]} 21. Bh4 {[%clk 0:01:06]}  Qd6 {[%clk 0:01:27]} 22. Bg3 {[%clk 0:01:02]}  Qb6 {[%clk 0:01:17]} 23. Nf4 {[%clk 0:00:54]}  cxd4 {[%clk 0:01:15]} 24. exd4 {[%clk 0:00:48]}  Ne5 {[%clk 0:01:05]} 25. Qd1 {[%clk 0:00:38]}  Nc4 {[%clk 0:00:53]} 26. Nxd5 {[%clk 0:00:24]}  Qe6 {[%clk 0:00:39]} 27. Nf4 {[%clk 0:00:19]}  Qe3+ {[%clk 0:00:36]} 28. Kg2 {[%clk 0:00:20]}  Rad8 {[%clk 0:00:32]} 29. d5 {[%clk 0:00:19]}  Qb6 {[%clk 0:00:21]} 30. Qb3 {[%clk 0:00:18]}  Ne3+ {[%clk 0:00:20]} 31. Kh3 {[%clk 0:00:16]}  Nxf1 {[%clk 0:00:19]} 32. Rxf1 {[%clk 0:00:17]}  Bc5 {[%clk 0:00:17]} 33. Qc2 {[%clk 0:00:15]}  Be3 {[%clk 0:00:17]} 34. g5 {[%clk 0:00:06]}  hxg5 {[%clk 0:00:16]} 35. Ng2 {[%clk 0:00:03]}  Bc5 {[%clk 0:00:15]} 36. Qf5 {[%clk 0:00:02]}  Be7 {[%clk 0:00:14]} 37. Bf2 {[%clk 0:00:01]}  Qf6 {[%clk 0:00:14]} 38. Qg4 {[%clk 0:00:01]}  Rxd5 {[%clk 0:00:13]} 39. Ne3 {[%clk 0:00:02]}  Rd2 {[%clk 0:00:12]} 40. Nf5 {[%clk 0:00:02]}  Rxb2 {[%clk 0:00:12]} 41. h6 {[%clk 0:00:02]}  g6 {[%clk 0:00:11]} 42. Bd4 {[%clk 0:00:02]}  Qxf5 {[%clk 0:00:11]} 43. Qxf5 {[%clk 0:00:03]}  gxf5 {[%clk 0:00:12]} 44. Bxb2 {[%clk 0:00:03]}  Kh7 {[%clk 0:00:12]} 45. Rd1 {[%clk 0:00:03]}  Kxh6 {[%clk 0:00:12]} 46. Rd7 {[%clk 0:00:04]}  Bc5 {[%clk 0:00:11]} 47. Rxf7 {[%clk 0:00:03]}  Kg6 {[%clk 0:00:11]} 48. Rxb7 {[%clk 0:00:03]}  Re2 {[%clk 0:00:10]} 49. Rb5 {[%clk 0:00:00]}  Be3 {[%clk 0:00:10]} 0-1


[Site "https://www.chess.com"]

[Event "Titled Tuesday Blitz August 15 Early 2023"]
[White "Navyblue1"]
[Black "Davidson, Kevin"]
[BlackFideId "2056810"]
[WhiteElo "1961"]
[BlackElo "2326"]
[Result "0-1"]
[Round "3"]
[TimeControl "180+1"]
[Date "2023.08.15"]
[WhiteClock "0:00:00"]
[BlackClock "0:01:51"]
[Board "238"]

1. d4 {[%clk 0:03:00]}  Nf6 {[%clk 0:02:59]} 2. c4 {[%clk 0:02:57]}  g6 {[%clk 0:03:00]} 3. Nc3 {[%clk 0:02:56]}  Bg7 {[%clk 0:03:00]} 4. e4 {[%clk 0:02:55]}  d6 {[%clk 0:03:00]} 5. h3 {[%clk 0:02:46]}  O-O {[%clk 0:03:00]} 6. Be3 {[%clk 0:02:46]}  Na6 {[%clk 0:02:59]} 7. Nf3 {[%clk 0:02:37]}  e5 {[%clk 0:02:59]} 8. d5 {[%clk 0:02:34]}  Nc5 {[%clk 0:02:59]} 9. Nd2 {[%clk 0:02:13]}  a5 {[%clk 0:02:58]} 10. Be2 {[%clk 0:01:53]}  Ne8 {[%clk 0:02:52]} 11. f3 {[%clk 0:01:12]}  Bh6 {[%clk 0:02:40]} 12. Bf2 {[%clk 0:00:24]}  f5 {[%clk 0:02:31]} 13. O-O {[%clk 0:00:19]}  Nf6 {[%clk 0:02:23]} 14. exf5 {[%clk 0:00:13]}  gxf5 {[%clk 0:02:21]} 15. Qc2 {[%clk 0:00:13]}  Kh8 {[%clk 0:02:15]} 16. Rae1 {[%clk 0:00:11]}  Rg8 {[%clk 0:02:14]} 17. Kh1 {[%clk 0:00:10]}  Nh5 {[%clk 0:01:55]} 18. Rg1 {[%clk 0:00:00]}  Qg5 {[%clk 0:01:51]} 0-1


[Site "https://www.chess.com"]

[Event "Titled Tuesday Blitz August 15 Early 2023"]
[White "Wilson, Otis"]
[Black "Martin, Lewis"]
[WhiteFideId "30904021"]
[BlackFideId "410551"]
[WhiteElo "1960"]
[BlackElo "2321"]
[Result "1-0"]
[Round "3"]
[TimeControl "180+1"]
[Date "2023.08.15"]
[WhiteClock "0:00:04"]
[BlackClock "0:00:00"]
[Board "239"]

1. d4 {[%clk 0:03:00]}  d5 {[%clk 0:02:58]} 2. c4 {[%clk 0:03:00]}  c6 {[%clk 0:02:58]} 3. cxd5 {[%clk 0:03:00]}  cxd5 {[%clk 0:02:58]} 4. Nc3 {[%clk 0:03:01]}  Nf6 {[%clk 0:02:57]} 5. Nf3 {[%clk 0:03:02]}  Nc6 {[%clk 0:02:57]} 6. Bf4 {[%clk 0:03:00]}  a6 {[%clk 0:02:57]} 7. e3 {[%clk 0:03:01]}  Qa5 {[%clk 0:02:32]} 8. a3 {[%clk 0:02:41]}  Bf5 {[%clk 0:02:25]} 9. Ne5 {[%clk 0:02:41]}  e6 {[%clk 0:02:18]} 10. Nxc6 {[%clk 0:02:33]}  bxc6 {[%clk 0:02:17]} 11. Bd3 {[%clk 0:02:34]}  Ne4 {[%clk 0:02:09]} 12. Bxe4 {[%clk 0:02:26]}  Bxe4 {[%clk 0:02:08]} 13. O-O {[%clk 0:02:27]}  Bg6 {[%clk 0:02:07]} 14. b4 {[%clk 0:02:25]}  Qd8 {[%clk 0:02:00]} 15. Na4 {[%clk 0:02:20]}  Bd6 {[%clk 0:01:54]} 16. Bxd6 {[%clk 0:02:20]}  Qxd6 {[%clk 0:01:54]} 17. Nc5 {[%clk 0:02:20]}  O-O {[%clk 0:01:41]} 18. Qa4 {[%clk 0:02:19]}  e5 {[%clk 0:01:37]} 19. dxe5 {[%clk 0:02:19]}  Qc7 {[%clk 0:01:32]} 20. e6 {[%clk 0:02:13]}  Rfe8 {[%clk 0:01:26]} 21. exf7+ {[%clk 0:02:06]}  Bxf7 {[%clk 0:01:27]} 22. Rac1 {[%clk 0:02:05]}  Re5 {[%clk 0:01:16]} 23. Rfd1 {[%clk 0:01:39]}  Rh5 {[%clk 0:01:01]} 24. h3 {[%clk 0:01:33]}  Rf8 {[%clk 0:01:01]} 25. Nxa6 {[%clk 0:01:29]}  Qe5 {[%clk 0:00:55]} 26. Rxc6 {[%clk 0:01:16]}  Be8 {[%clk 0:00:53]} 27. Rdc1 {[%clk 0:00:43]}  Rh6 {[%clk 0:00:20]} 28. b5 {[%clk 0:00:41]}  Bxc6 {[%clk 0:00:18]} 29. bxc6 {[%clk 0:00:37]}  Rhf6 {[%clk 0:00:17]} 30. c7 {[%clk 0:00:28]}  Rxf2 {[%clk 0:00:10]} 31. c8=Q {[%clk 0:00:27]}  Qxe3 {[%clk 0:00:10]} 32. Kh1 {[%clk 0:00:13]}  Qg3 {[%clk 0:00:03]} 33. Qxf8+ {[%clk 0:00:08]}  Rxf8 {[%clk 0:00:00]} 34. Qd4 {[%clk 0:00:04]} 1-0


[Site "https://www.chess.com"]

[Event "Titled Tuesday Blitz August 15 Early 2023"]
[White "So, Wesley"]
[Black "Kazakouski, Valery"]
[WhiteFideId "5202213"]
[BlackFideId "13507443"]
[WhiteElo "3137"]
[BlackElo "2920"]
[Result "1-0"]
[Round "4"]
[TimeControl "180+1"]
[Date "2023.08.15"]
[WhiteClock "0:00:17"]
[BlackClock "0:00:00"]
[Board "1"]

1. b3 {[%clk 0:03:00]}  Nf6 {[%clk 0:02:53]} 2. Bb2 {[%clk 0:03:01]}  e6 {[%clk 0:02:54]} 3. e3 {[%clk 0:03:00]}  d5 {[%clk 0:02:54]} 4. f4 {[%clk 0:02:57]}  a5 {[%clk 0:02:54]} 5. a4 {[%clk 0:02:56]}  b6 {[%clk 0:02:54]} 6. Nf3 {[%clk 0:02:56]}  Bb7 {[%clk 0:02:54]} 7. Bb5+ {[%clk 0:02:56]}  c6 {[%clk 0:02:53]} 8. Bd3 {[%clk 0:02:50]}  Ba6 {[%clk 0:02:53]} 9. Bxa6 {[%clk 0:02:39]}  Rxa6 {[%clk 0:02:53]} 10. O-O {[%clk 0:02:33]}  Bd6 {[%clk 0:02:43]} 11. Ne5 {[%clk 0:02:24]}  O-O {[%clk 0:02:42]} 12. Rf3 {[%clk 0:02:23]}  Nfd7 {[%clk 0:02:40]} 13. Rh3 {[%clk 0:02:01]}  f6 {[%clk 0:02:38]} 14. Qh5 {[%clk 0:01:59]}  fxe5 {[%clk 0:02:20]} 15. fxe5 {[%clk 0:01:56]}  Bxe5 {[%clk 0:02:06]} 16. Bxe5 {[%clk 0:01:50]}  Nxe5 {[%clk 0:02:05]} 17. Qxh7+ {[%clk 0:01:48]}  Kf7 {[%clk 0:01:55]} 18. Qh5+ {[%clk 0:01:48]}  Kf6 {[%clk 0:01:49]} 19. Nc3 {[%clk 0:01:35]}  Nbd7 {[%clk 0:01:39]} 20. d4 {[%clk 0:01:29]}  Nf7 {[%clk 0:01:30]} 21. Rg3 {[%clk 0:01:14]}  Ke7 {[%clk 0:00:34]} 22. Rxg7 {[%clk 0:01:11]}  Nf6 {[%clk 0:00:34]} 23. Qh4 {[%clk 0:00:52]}  Rh8 {[%clk 0:00:28]} 24. Qf4 {[%clk 0:00:51]}  Kf8 {[%clk 0:00:15]} 25. Rg6 {[%clk 0:00:47]}  Nh5 {[%clk 0:00:13]} 26. Qf3 {[%clk 0:00:46]}  Ra7 {[%clk 0:00:09]} 27. Rf1 {[%clk 0:00:44]}  Ng7 {[%clk 0:00:06]} 28. Qg4 {[%clk 0:00:39]}  Nf5 {[%clk 0:00:04]} 29. Rxe6 {[%clk 0:00:35]}  Qh4 {[%clk 0:00:04]} 30. Qxf5 {[%clk 0:00:29]}  Qxh2+ {[%clk 0:00:04]} 31. Kf2 {[%clk 0:00:30]}  Rg8 {[%clk 0:00:03]} 32. Rg6 {[%clk 0:00:25]}  Qh4+ {[%clk 0:00:02]} 33. Ke2 {[%clk 0:00:25]}  Rxg6 {[%clk 0:00:02]} 34. Qxg6 {[%clk 0:00:26]}  Re7 {[%clk 0:00:03]} 35. Qxc6 {[%clk 0:00:25]}  Qg4+ {[%clk 0:00:02]} 36. Kf2 {[%clk 0:00:19]}  Qg5 {[%clk 0:00:00]} 37. Nxd5 {[%clk 0:00:17]} 1-0


[Site "https://www.chess.com"]